{"text_format":"3","workbook":"xlsx","n_sheets":3,"sheets":["Начало","Портфель","Распределение ресурсов"],"not_rendered":{"charts":1,"images":6,"defined_names":1},"read":"whole","date_system":"1900"}

{"sheet":"Начало","index":0,"n_rows":29,"n_cols":2,"rows_kept":29}
["Отслеживание инвестиций","Отслеживание инвестиций"]
[]
["Шаблон отслеживания инвестиций позволяет отслеживать инвестиции и распределение активов. Тип данных \"Акции\" в Excel помогает поддерживать в актуальном состоянии цены и сведения о ресурсах в портфеле. Шаблон состоит из двух листов, \"Портфель\" и \"Выделенные ресурсы\", описанных ниже. Примечание. Тип данных \"Акции\" в Excel доступен только при наличии подписки на Office 365. "]
[]
["Портфель","Портфель"]
["Добавьте инвестиции, введите торговые коды, названия компаний или фондов на примерах или добавьте дополнительные строки. Выберите категорию активов и введите количество акций."]
["Выберите Добавить столбец, чтобы добавить дополнительные столбцы, например \"Символ торгового кода\" или \"Биржа\"."]
{"$rows_empty":13}
["Чтобы обновить данные, щелкните любую акцию. На вкладке \"Данные\", в группе \"Запросы и подключения\", нажмите кнопку \"Обновить все\" или нажмите клавиши CTRL+ALT+F5."]
[]
[]
[]
[]
["Распределение активов","Распределение активов"]
[]
["Измените Категория и Цель, чтобы настроить цели портфелей."]
["Если категория ресурсов превышает Пороговое значение, сумма будет выделена желтым цветом."]

{"sheet":"Портфель","index":1,"n_rows":12,"n_cols":9,"rows_kept":12}
["Отслеживание инвестиций","Отслеживание инвестиций"]
[]
["Портфель","Портфель"]
[]
["В ячейках B5:I11 находится таблица с имеющимися акциями, а в строке 12 представлены итоги. Введите название компании в ячейках B5:B11, а затем выберите \"Данные\" > \"Обновить\" или нажмите клавиши CTRL+ALT+F5.","Компания","Категория","Доли активов","Цена","Изменение","Изменение (%)","Портфель (%)","Стоимость"]
["Добавьте инвестиции, введите торговые коды, названия компаний или фондов на примерах или добавьте дополнительные строки.  Выберите категорию активов и введите количество акций.",{"$error":"#VALUE!"},"Акции США",{"v":1200,"d":"1,200 "},{"$f":"_FV(TablePortfolio[[#This Row],[Компания]],\"Price\")","v":{"v":116.77,"d":"116.77 ₽"}},{"$f":"_FV(TablePortfolio[[#This Row],[Компания]],\"Price\")","v":{"v":116.77,"d":"116.77 ₽"}},{"$f":"_FV(TablePortfolio[[#This Row],[Компания]],\"Change (%)\",TRUE)","v":{"v":-0.009668,"d":"-0.97%"}},{"$f":"IFERROR(I6/SUBTOTAL(109,TablePortfolio[Стоимость]),\"\")","v":{"v":0.6229020664270616,"d":"62%"}},{"$f":"D6 * E6","v":{"v":140124,"d":"140,124.00 ₽"}}]
["Нажмите кнопку \"Добавить столбец\", чтобы добавить дополнительные столбцы, например \"Символ торгового кода\" или \"Биржа\".",{"$error":"#VALUE!"},"Облигации",{"v":1300,"d":"1,300 "},{"$f":"_FV(TablePortfolio[[#This Row],[Компания]],\"Price\")","v":{"v":10.69,"d":"10.69 ₽"}},{"$f":"_FV(TablePortfolio[[#This Row],[Компания]],\"Price\")","v":{"v":10.69,"d":"10.69 ₽"}},{"$f":"_FV(TablePortfolio[[#This Row],[Компания]],\"Change (%)\",TRUE)","v":{"v":1.874E-3,"d":"0.19%"}},{"$f":"IFERROR(I7/SUBTOTAL(109,TablePortfolio[Стоимость]),\"\")","v":{"v":0.06177721173486965,"d":"6%"}},{"v":13897,"d":"13,897.00 ₽"}]
["Чтобы обновить данные, щелкните любую акцию. На вкладке \"Данные\", в группе \"Запросы и подключения\", нажмите кнопку \"Обновить все\" или нажмите клавиши CTRL+ALT+F5.",{"$error":"#VALUE!"},"Международные акции",{"v":1200,"d":"1,200 "},{"$f":"_FV(TablePortfolio[[#This Row],[Компания]],\"Price\")","v":{"v":27.75,"d":"27.75 ₽"}},{"$f":"_FV(TablePortfolio[[#This Row],[Компания]],\"Price\")","v":{"v":27.75,"d":"27.75 ₽"}},{"$f":"_FV(TablePortfolio[[#This Row],[Компания]],\"Change (%)\",TRUE)","v":{"v":-2.516E-3,"d":"-0.25%"}},{"$f":"IFERROR(I8/SUBTOTAL(109,TablePortfolio[Стоимость]),\"\")","v":{"v":0.14803059298921778,"d":"15%"}},{"v":33300,"d":"33,300.00 ₽"}]
[null,{"$error":"#VALUE!"},"Наличные деньги",{"v":10000,"d":"10,000 "},{"$f":"_FV(TablePortfolio[[#This Row],[Компания]],\"Price\")","v":{"v":1,"d":"1.00 ₽"}},{"$f":"_FV(TablePortfolio[[#This Row],[Компания]],\"Price\")","v":{"v":1,"d":"1.00 ₽"}},{"$f":"_FV(TablePortfolio[[#This Row],[Компания]],\"Change (%)\",TRUE)","v":{"v":0,"d":"0.00%"}},{"$f":"IFERROR(I9/SUBTOTAL(109,TablePortfolio[Стоимость]),\"\")","v":{"v":0.044453631528293625,"d":"4%"}},{"v":10000,"d":"10,000.00 ₽"}]
[null,{"$error":"#VALUE!"},"Недвижимость",{"v":125,"d":"125 "},{"$f":"_FV(TablePortfolio[[#This Row],[Компания]],\"Price\")","v":{"v":122.14,"d":"122.14 ₽"}},{"$f":"_FV(TablePortfolio[[#This Row],[Компания]],\"Price\")","v":{"v":122.14,"d":"122.14 ₽"}},{"$f":"_FV(TablePortfolio[[#This Row],[Компания]],\"Change (%)\",TRUE)","v":{"v":-0.009729,"d":"-0.97%"}},{"$f":"IFERROR(I10/SUBTOTAL(109,TablePortfolio[Стоимость]),\"\")","v":{"v":0.06786958193582229,"d":"7%"}},{"v":15267.5,"d":"15,267.50 ₽"}]
[null,{"$error":"#VALUE!"},"Товары",{"v":100,"d":"100 "},{"$f":"_FV(TablePortfolio[[#This Row],[Компания]],\"Price\")","v":{"v":123.65,"d":"123.65 ₽"}},{"$f":"_FV(TablePortfolio[[#This Row],[Компания]],\"Price\")","v":{"v":123.65,"d":"123.65 ₽"}},{"$f":"_FV(TablePortfolio[[#This Row],[Компания]],\"Change (%)\",TRUE)","v":{"v":-0.005229,"d":"-0.52%"}},{"$f":"IFERROR(I11/SUBTOTAL(109,TablePortfolio[Стоимость]),\"\")","v":{"v":0.05496691538473507,"d":"5%"}},{"v":12365,"d":"12,365.00 ₽"}]
[null,"Итог",{"$nulls":6},{"$f":"IFERROR(SUBTOTAL(109,TablePortfolio[Стоимость]), \"\")","v":{"v":224953.5,"d":"224,953.50 ₽"}}]

{"sheet":"Распределение ресурсов","index":2,"n_rows":25,"n_cols":7,"rows_kept":25}
["Отслеживание инвестиций","Отслеживание инвестиций"]
[]
["Распределение активов","Распределение активов"]
[]
[]
["В строках 19–25 находится гистограмма для визуального сравнения фактического процента инвестиций в каждой категории с целевыми показателями, заданными в приведенной ниже таблице."]
{"$rows_empty":12}
["Это таблица для вычисления фактического процента инвестиций в каждой категории и его сравнения с целевыми показателями.","Категория","Цель","Фактическая","Разница","Пороговое значение","Стоимость"]
["В таблицу автоматически добавляются категории инвестиций из таблицы \"Портфель\" в ячейках B19:G25. Введите цель для каждой категории инвестиций в ячейках C20:C25, а затем выберите \"Данные\" > \"Обновить\" или нажмите клавиши CTRL+ALT+F5. ","Акции США",{"v":0.55,"d":"55%"},{"$f":"IFERROR(G20/SUBTOTAL(109,TableAssetAllocation[Стоимость]),\"\")","v":{"v":0.6229020664270616,"d":"62%"}},{"$f":"D20 - C20","v":{"v":0.07290206642706154,"d":"7.3%"}},{"$f":"MIN(5%, $C20 * 25%)","v":{"v":0.05,"d":"5%"}},{"$f":"SUMIF(TablePortfolio[Категория], B20, TablePortfolio[Стоимость])","v":{"v":140124,"d":"140,124.00 ₽"}}]
["Если категория ресурсов превышает Пороговое значение, сумма будет выделена желтым цветом.","Международные акции",{"v":0.2,"d":"20%"},{"$f":"IFERROR(G21/SUBTOTAL(109,TableAssetAllocation[Стоимость]),\"\")","v":{"v":0.14803059298921778,"d":"15%"}},{"v":-0.05196940701078223,"d":"-5.2%"},{"v":0.05,"d":"5%"},{"$f":"SUMIF(TablePortfolio[Категория], B21, TablePortfolio[Стоимость])","v":{"v":33300,"d":"33,300.00 ₽"}}]
[null,"Облигации",{"v":0.1,"d":"10%"},{"$f":"IFERROR(G22/SUBTOTAL(109,TableAssetAllocation[Стоимость]),\"\")","v":{"v":0.06177721173486965,"d":"6%"}},{"v":-0.038222788265130356,"d":"-3.8%"},{"v":0.025,"d":"3%"},{"$f":"SUMIF(TablePortfolio[Категория], B22, TablePortfolio[Стоимость])","v":{"v":13897,"d":"13,897.00 ₽"}}]
[null,"Наличные деньги",{"v":0.05,"d":"5%"},{"$f":"IFERROR(G23/SUBTOTAL(109,TableAssetAllocation[Стоимость]),\"\")","v":{"v":0.044453631528293625,"d":"4%"}},{"v":-0.005546368471706378,"d":"-0.6%"},{"v":0.0125,"d":"1%"},{"$f":"SUMIF(TablePortfolio[Категория], B23, TablePortfolio[Стоимость])","v":{"v":10000,"d":"10,000.00 ₽"}}]
[null,"Недвижимость",{"v":0.05,"d":"5%"},{"$f":"IFERROR(G24/SUBTOTAL(109,TableAssetAllocation[Стоимость]),\"\")","v":{"v":0.06786958193582229,"d":"7%"}},{"v":0.01786958193582229,"d":"1.8%"},{"v":0.0125,"d":"1%"},{"$f":"SUMIF(TablePortfolio[Категория], B24, TablePortfolio[Стоимость])","v":{"v":15267.5,"d":"15,267.50 ₽"}}]
[null,"Товары",{"v":0.05,"d":"5%"},{"$f":"IFERROR(G25/SUBTOTAL(109,TableAssetAllocation[Стоимость]),\"\")","v":{"v":0.05496691538473507,"d":"5%"}},{"v":4.9669153847350656E-3,"d":"0.5%"},{"v":0.0125,"d":"1%"},{"$f":"SUMIF(TablePortfolio[Категория], B25, TablePortfolio[Стоимость])","v":{"v":12365,"d":"12,365.00 ₽"}}]